[Event "1st Kallai Gabor Memorial 2022"]
[Site "Budapest"]
[Date "2022.11.29"]
[Round "6.2"]
[White "Bjerre, Jonas Buhl"]
[Black "Troff, Kayden"]
[Result "1-0"]
[ECO "A05"]
[WhiteElo "2622"]
[BlackElo "2483"]
[Annotator "TA"]
[PlyCount "143"]
[EventDate "2022.11.28"]
[EventType "tourn"]
[EventCountry "HUN"]
[SourceTitle "playchess.com"]
[Source "ChessBase"]
[SourceQuality "1"]
[TimeControl "1500+5"]

{[%evp 9,143,49,59,18,77,69,87,87,91,92,101,98,93,96,125,45,101,104,206,120,227,208,210,92,89,96,77,75,97,27,33,31,541,532,502,479,869,560,1335,586,583,572,581,582,558,583,547,439,431,432,442,410,405,394,406,409,408,408,401,399,417,440,439,439,427,431,486,486,441,399,3089,2874,3887,1247,5539,12743,12493,12583,6393,1537,12849,754,29963,29963,29970,29969,29979,29980,29980,29981,29974,29970,29970,29971,29971,29972,29987,29960,29968,29970,29968,29968,29968,29969,29970,29971,29974,29972,29972,29970,29970,29971,29970,29969,29974,29975,29975,29976,29976,29976,29976,29976,29976,29977,29976,29977,29978,29978,29978,29979,29978,29979,29984,29982,29987,29986]} 1. Nf3 {[%emt 0:00:11]} Nf6 {[%emt 0:00:07]} 2. c4 {[%emt 0:00:06]} g6 {[%emt 0:00:03]} 3. Nc3 {[%emt 0:00:05]} Bg7 {[%emt 0:00:02]} 4. e4 {[%emt 0:00:05]} e5 {[%emt 0:00:05]} 5. Nxe5 {[%emt 0:00:05]} O-O {[%emt 0:00:03]} 6. d3 {[%emt 0:00:06] A16: English Opening: 1...Nf6 with ...d5.} Re8 {[%emt 0:00:08]} (6... Nxe4 $11 {keeps the balance.} 7. Nxe4 Bxe5) 7. f4 $1 $16 {[%emt 0:00:15]} c6 {[%emt 0:02:22][%cal Bc7c6,Bc6d5][%mdl 32] [#]} 8. Be2 $146 {[%emt 0:01:23] White is better.} ({Predecessor:} 8. c5 d6 9. cxd6 Qxd6 10. d4 b5 11. a3 a6 12. Be3 Bb7 13. b4 a5 14. Qb3 {1-0 (52) Ganguly,S (2616)-Gupta,A (2606) chess24.com INT 2022}) 8... d5 {[%emt 0:00:34]} 9. O-O {[%emt 0:00:19]} Na6 {[%emt 0:01:36]} 10. exd5 {[%emt 0:01:02]} cxd5 {[%emt 0:00:08]} 11. Bf3 {[%emt 0:00:02][%cal Rc4d5]} Be6 {[%emt 0:01:25]} 12. Kh1 {[%emt 0:00:27] White is more active.} (12. d4 $1 $16) 12... Rc8 {[%emt 0:02:03]} (12... Rb8 $1 $14) 13. d4 {[%emt 0:03:24]} Re7 {[%emt 0:03:26]} (13... Rxc4 $16 14. Nxc4 dxc4) 14. f5 {[%emt 0:02:21]} (14. g4 $1 $18) 14... Bxf5 {[%emt 0:01:13]} (14... gxf5 $16 15. Bg5 dxc4) 15. Nxd5 $18 {[%emt 0:02:22]} (15. Bxd5 Nxd5 16. Nxd5 Re8 $14) 15... Nxd5 {[%emt 0:02:27]} 16. cxd5 {[%emt 0:00:02]} (16. Bxd5 $18 Bxe5 17. dxe5) 16... Nb4 {[%emt 0:01:05]} 17. Bg5 $1 $36 {[%emt 0:02:47][%mdl 2048] White is on the roll.} f6 {[%emt 0:00:20] Inhibits g4.} 18. Qb3 $1 {[%emt 0:00:03] Black must now prevent d6+.} Qd6 {[%emt 0:02:52] [#]} 19. Bd2 {[%emt 0:00:46]} (19. Bh4 $1 $16 {Nc4 is the strong threat.} Nc2 20. Nc4) 19... Nc2 $11 {[%emt 0:00:33]} 20. Nc4 {[%emt 0:00:25]} Qa6 {[%emt 0:03:11][%mdl 8192] Black cannot hold the game after this.} (20... Qd7 $14 21. d6 Rf7) 21. d6 $1 $18 {[%emt 0:00:28][%cal Bd5d6,Bd6d7][%mdl 32]} Nxa1 {[%emt 0:00:12]} 22. Rxa1 {[%emt 0:00:09]} Re6 {[%emt 0:01:23]} (22... Ree8 $142 23. Bxb7 (23. Qxb7 Qxb7 24. Bxb7 Rb8 $14) 23... Qxc4) 23. d7 {[%emt 0:01:56]} (23. Qxb7 $2 Qxb7 24. Bxb7 Rxc4 $19) 23... Rb8 {[%emt 0:00:52] [#]} 24. Bf4 {[%emt 0:02:05] Against b5} (24. Bxb7 $142 $1 {[%mdl 512]} Qxb7 25. Qxb7 Rxb7 26. d8=Q+ (26. d8=B $2 Re2 $19) 26... Bf8 27. d5) 24... Rd8 {[%emt 0:00:25]} 25. Bxb7 {[%emt 0:00:27][%mdl 64] Trapped Piece} Bc2 {[%emt 0:00:22]} 26. Bxa6 {[%emt 0:01:22]} (26. Qxc2 $2 {perishes.} Qxb7 27. Be3 Qd5 $19) 26... Bxb3 {[%emt 0:00:02]} 27. axb3 {[%emt 0:00:01]} Re4 {[%emt 0:00:01]} 28. Bg3 {[%emt 0:00:28]} Rxd7 {[%emt 0:00:03]} 29. d5 {[%emt 0:00:18]} f5 {[%emt 0:00:13]} 30. Bc8 {[%emt 0:00:43]} Rxd5 {[%emt 0:00:07]} 31. Bb7 {[%emt 0:00:07]} (31. Rxa7 $2 {is a self mate.} Rd1+) 31... Rd3 {[%emt 0:00:01]} 32. Bxe4 {[%emt 0:00:16]} fxe4 {[%emt 0:00:01]} 33. Re1 {[%emt 0:00:51] Inhibits e3.} (33. Rxa7 $2 {gets mated.} Rd1+) 33... Rxb3 {[%emt 0:00:17]} 34. Rxe4 {[%emt 0:00:26] And now Re8+ would win.} Bxb2 {[%emt 0:00:04]} 35. Nxb2 {[%emt 0:00:05]} Rxb2 {[%emt 0:00:01][%mdl 4096] Endgame KRB-KR} 36. Kg1 {[%emt 0:00:10]} Ra2 {[%emt 0:00:05]} 37. Re7 {[%emt 0:00:03]} a5 {[%emt 0:00:02]} 38. Ra7 {[%emt 0:00:16]} a4 {[%emt 0:00:01]} 39. Bd6 {[%emt 0:00:34]} h5 $2 {[%emt 0:00:09]} (39... Rd2 40. Be5 Rd5) 40. h4 {[%emt 0:00:04] Threatens to win with Kh2.} Rd2 {[%emt 0:00:08]} 41. Be5 {[%emt 0:00:10]} (41. Be7 $142 Rd4 42. g3) 41... Re2 {[%emt 0:00:02]} 42. Bf6 {[%emt 0:00:15]} Re6 {[%emt 0:00:04]} 43. Bg5 {[%emt 0:00:13]} Re4 {[%emt 0:00:01]} 44. Kf2 {[%emt 0:00:04]} Rb4 {[%emt 0:00:04]} 45. Ke3 {[%emt 0:00:20]} (45. g3 $142 Re4 46. Kf3) 45... Rb3+ {[%emt 0:00:05]} 46. Ke4 {[%emt 0:00:06] White mates.} Rb4+ {[%emt 0:00:04]} 47. Kd5 {[%emt 0:00:05]} Rg4 {[%emt 0:00:04]} 48. Ke6 {[%emt 0:00:13]} Rb4 {[%emt 0:00:06]} 49. Ra8+ {[%emt 0:00:12]} Kh7 {[%emt 0:00:01]} 50. Bf6 {[%emt 0:00:07][%csl Gf6][%cal Ra8h8]} Rb6+ {[%emt 0:00:15]} 51. Ke5 {[%emt 0:00:02][%csl Gf6][%cal Ra8h8]} Rb5+ {[%emt 0:00:02]} 52. Ke4 {[%emt 0:00:06][%csl Gf6][%cal Ra8h8]} Rb4+ {[%emt 0:00:02]} 53. Kf3 {[%emt 0:00:06][%csl Gf6][%cal Ra8h8]} g5 {[%emt 0:00:04]} 54. Bxg5 Kg6 {[%emt 0:00:02]} 55. Ra5 {[%emt 0:00:10]} Rb3+ {[%emt 0:00:02]} 56. Ke4 {[%emt 0:00:03]} Rb4+ {[%emt 0:00:01]} 57. Ke5 {[%emt 0:00:01]} Rc4 {[%emt 0:00:12]} 58. Ra6+ {[%emt 0:00:02]} Kf7 {[%emt 0:00:01]} 59. g3 {[%emt 0:00:11]} Rc5+ {[%emt 0:00:02]} 60. Kd4 {[%emt 0:00:03]} Rb5 {[%emt 0:00:03]} 61. Rxa4 {[%emt 0:00:03]} Kg6 {[%emt 0:00:01]} 62. Ke4 {[%emt 0:00:02]} Rb6 {[%emt 0:00:01]} 63. Bf4 {[%emt 0:00:03]} Re6+ {[%emt 0:00:05]} 64. Kf3 {[%emt 0:00:01]} Rb6 {[%emt 0:00:02]} 65. Rd4 {[%emt 0:00:02]} Rb5 {[%emt 0:00:07]} 66. Ke4 {[%emt 0:00:03]} Kf6 {[%emt 0:00:05]} 67. Rd6+ {[%emt 0:00:01]} Kg7 {[%emt 0:00:02]} 68. Rd5 {[%emt 0:00:01]} Rb4+ {[%emt 0:00:02]} 69. Kf5 {[%emt 0:00:01]} Rb7 {[%emt 0:00:24]} 70. Kg5 {[%emt 0:00:03]} Kh7 {[%emt 0:00:01]} 71. Kxh5 {[%emt 0:00:06]} Rg7 {[%emt 0:00:01]} 72. Rc5 {[%emt 0:00:06] Weighted Error Value: White=0.51/Black=0.46} 1-0

[Event "1st Kallai Gabor Memorial 2022"]
[Site "Budapest"]
[Date "2022.11.29"]
[Round "6.3"]
[White "Kozak, Adam"]
[Black "Gaal, Zsoka"]
[Result "1-0"]
[ECO "A46"]
[WhiteElo "2538"]
[BlackElo "2286"]
[Annotator "TA"]
[PlyCount "85"]
[EventDate "2022.11.28"]
[EventType "tourn"]
[EventCountry "HUN"]
[SourceTitle "playchess.com"]
[Source "ChessBase"]
[SourceQuality "1"]
[TimeControl "1500+5"]

{[%evp 9,85,10,16,19,14,16,16,13,56,51,56,41,56,56,60,56,48,65,59,33,30,28,32,17,38,36,47,9,5,8,45,0,0,0,15,9,81,81,194,192,175,157,185,60,143,153,146,122,178,152,179,184,393,130,236,241,304,281,259,179,265,232,316,313,283,204,792,787,760,749,1026,979,29987,29988,29992,29993,29993,29990]} 1. d4 {[%emt 0:00:39]} Nf6 {[%emt 0:00:07]} 2. Nf3 {[%emt 0:00:05]} d5 {[%emt 0:00:04]} 3. c3 {[%emt 0:00:47][%cal Bc2c3,Bc3c4][%mdl 32]} Bf5 {[%emt 0:01:22]} 4. Bf4 {[%emt 0:00:40]} h6 {[%emt 0:00:06]} 5. Qb3 {[%emt 0:00:11]} Qc8 {[%emt 0:00:38]} 6. e3 {[%emt 0:00:13] D02: 1 d4 d5 2 Nf3 sidelines, including 2...Nf6 3 g3 and 2...Nf6 3 Bf4.} e6 {[%emt 0:00:44]} 7. c4 {[%emt 0:00:30]} Bd6 {[%emt 0:02:39]} 8. Be5 {[%emt 0:01:37] [#] Strongly threatening Bxf6. The position is equal.} Nc6 $146 {[%emt 0:03:04][%cal Bb8c6,Bc6b4,Bb4d3][%mdl 32]} ({Predecessor:} 8... Nbd7 9. Nc3 dxc4 10. Bxc4 O-O 11. O-O {½-½ (11) Sorcinelli,A (2106)-Morcin,T (2083) LSS email 2012}) 9. Bxf6 {[%emt 0:02:13]} gxf6 {[%emt 0:00:57]} 10. Nc3 {[%emt 0:00:29]} Nb4 {[%emt 0:03:19] [#] Threatens to win with ...Bc2.} 11. Rc1 {[%emt 0:00:44] Inhibits Bc2. c5 is the strong threat.} dxc4 {[%emt 0:03:17]} 12. Bxc4 {[%emt 0:00:05]} Nd3+ $1 {[%emt 0:02:13]} 13. Bxd3 {[%emt 0:00:02]} Bxd3 {[%emt 0:00:02]} 14. Nb5 {[%emt 0:01:20]} (14. d5 {looks sharper.} c5 15. Nb5 Bxb5 16. Qxb5+ Qd7 17. Qc4) 14... Bxb5 {[%emt 0:00:01]} 15. Qxb5+ {[%emt 0:00:01]} c6 {[%emt 0:00:04]} 16. Qc4 {[%emt 0:00:09]} Rg8 17. g3 {[%emt 0:02:28]} Qc7 {[%emt 0:01:02]} 18. b4 {[%emt 0:00:23]} Qb6 {[%emt 0:00:30]} 19. Rb1 {[%emt 0:00:36]} a5 {[%emt 0:00:12][%cal Ra5b4]} 20. a3 {[%emt 0:01:53]} axb4 {[%emt 0:00:06]} 21. axb4 {[%emt 0:00:01]} Ra4 {[%emt 0:02:36] Prevents b5.} 22. O-O {[%emt 0:00:04] White wants to play Qc2.} Kf8 {[%emt 0:01:01]} (22... Bxb4 $2 23. Rfc1 $16) (22... Qb5 $11 23. Qxb5 cxb5) 23. Qc2 $16 {[%emt 0:00:43]} Rxb4 {[%emt 0:00:05]} (23... Qb5 $16) 24. Rxb4 $18 {[%emt 0:00:17]} ({Don't do} 24. Qh7 $6 Qc7 $16) 24... Bxb4 {[%emt 0:01:56] [#]} 25. Rb1 $1 {[%emt 0:00:03]} Qa5 {[%emt 0:00:32]} 26. Qc4 {[%emt 0:01:56]} ({Better is} 26. Qh7 $18) 26... Bd6 {[%emt 0:00:25]} ({Black should play} 26... Be7 $1 $14) 27. Rxb7 $16 {[%emt 0:00:01]} Qd5 {[%emt 0:00:05]} 28. Qe2 {[%emt 0:00:02] And now Rd7 would win. White is more active.} Kg7 {[%emt 0:00:06]} (28... c5 $16 29. Rd7 cxd4) 29. e4 $36 {[%emt 0:00:19][%mdl 2048] White is on the roll.} Qh5 {[%emt 0:00:04]} 30. Kg2 {[%emt 0:00:56] Hoping for Qc4.} Ra8 $2 {[%emt 0:00:04]} (30... Rb8 31. Rd7 Bf8) 31. Rb6 $2 {[%emt 0:00:43]} (31. Qc4 $18) 31... Ra3 {[%emt 0:00:11]} (31... f5 $16 32. Rxc6 fxe4) 32. Rxc6 $18 Be7 {[%emt 0:00:01]} 33. Rc7 {[%emt 0:00:46] Inhibits f5.} Bd6 {[%emt 0:00:04]} 34. Rc2 {[%emt 0:00:05]} f5 {[%emt 0:00:05]} (34... Rb3 $142 35. d5 exd5) 35. e5 {[%emt 0:00:16]} Bb4 {[%emt 0:00:05]} 36. Rc4 {[%emt 0:00:28]} Be7 {[%emt 0:00:10]} 37. Rc7 {[%emt 0:00:19][%cal Bc4c7,Bc7a7,Ba7f7,Bf7f4][%mdl 32] Inhibits f4.} Bb4 $2 {[%emt 0:00:02] Prevents d5.} (37... Kf8 38. d5 exd5 39. Rc8+ Kg7) 38. d5 {[%emt 0:00:14][%cal Bd4d5,Bd5e6][%mdl 32]} Ba5 {[%emt 0:00:05]} 39. Ra7 {[%emt 0:00:24]} Qg6 {[%emt 0:00:05]} 40. Nh4 {[%emt 0:00:17]} Qg5 {[%emt 0:00:07]} 41. dxe6 {[%emt 0:00:06] White mates.} f4 {[%emt 0:00:01]} 42. Rxf7+ {[%emt 0:00:12]} Kg8 {[%emt 0:00:01]} 43. Rxf4 {[%emt 0:00:05] Weighted Error Value: White=0.28 (precise) /Black=0.49} 1-0

[Event "1st Kallai Gabor Memorial 2022"]
[Site "Budapest"]
[Date "2022.11.29"]
[Round "6.4"]
[White "Ruck, Robert"]
[Black "Horvath, Csaba"]
[Result "1/2-1/2"]
[ECO "A04"]
[WhiteElo "2537"]
[BlackElo "2502"]
[Annotator "TA"]
[PlyCount "79"]
[EventDate "2022.11.28"]
[EventType "tourn"]
[EventCountry "HUN"]
[SourceTitle "playchess.com"]
[Source "ChessBase"]
[SourceQuality "1"]
[TimeControl "1500+5"]

{[%evp 11,79,43,44,27,28,27,45,54,40,53,38,43,45,17,23,22,24,15,22,16,60,16,35,12,17,0,0,-5,0,0,0,0,0,-9,0,-6,0,-1,-10,0,4,0,0,-5,11,0,20,27,79,0,0,0,0,0,0,0,0,-95,0,0,0,0,0,0,0,0,0,-10,-2,-17]} 1. Nf3 {[%emt 0:00:08]} g6 {[%emt 0:00:06]} 2. e4 {[%emt 0:00:01]} d5 {[%emt 0:00:02]} 3. exd5 {[%emt 0:00:15]} Qxd5 {[%emt 0:00:02]} 4. Nc3 {[%emt 0:00:11]} Qd6 {[%emt 0:00:02]} 5. d4 {[%emt 0:00:27]} Nf6 {[%emt 0:00:05]} 6. Bc4 {[%emt 0:03:43]} Bg7 {[%emt 0:00:03]} 7. O-O {[%emt 0:00:16] B01: Scandinavian Defence.} O-O {[%emt 0:00:03]} 8. h3 {[%emt 0:01:31]} (8. Ne5 {seems wilder.} Nc6 9. Nb5 Qd8 10. Re1) 8... b6 {[%emt 0:00:03][%cal Bb7b6,Bb6b5][%mdl 32]} 9. Nb5 {[%emt 0:00:58] White is slightly better.} Qd8 {[%emt 0:00:10]} 10. Bf4 {[%emt 0:00:04] [#]} Ba6 $146 {[%emt 0:00:17]} ({Predecessor:} 10... Na6 11. Qe2 c6 12. Nc3 Nb4 13. Rfe1 a5 14. a3 Nbd5 15. Bxd5 Nxd5 16. Nxd5 Qxd5 17. Qxe7 Bxh3 {1-0 (37) Palac,M (2572)-Stevic,H (2624) Opatija 2012}) 11. Qe2 {[%emt 0:00:25]} (11. Bxc7 $2 {too greedy.} Qc8 12. a4 Bxb5 13. axb5 Qxc7 $19) 11... c6 {[%emt 0:01:54]} 12. Nc3 {[%emt 0:00:54]} (12. Na3 $5 {[%cal Rc4a6]} b5 13. Bd3 $14) 12... Bxc4 {[%emt 0:01:30]} 13. Qxc4 {[%emt 0:00:03]} b5 {[%emt 0:00:36]} 14. Qe2 {[%emt 0:00:27]} Nbd7 {[%emt 0:01:47]} 15. Rfe1 {[%emt 0:03:06]} e6 {[%emt 0:00:14]} 16. Rad1 {[%emt 0:00:08]} Nb6 {[%emt 0:00:46]} 17. Bg5 {[%emt 0:01:33][%cal Bf4g5,Bg5h4,Bh4g3][%mdl 32]} Qc7 {[%emt 0:00:47]} 18. Bh4 {[%emt 0:00:15]} Nbd5 {[%emt 0:01:10]} 19. Qd3 {[%emt 0:05:39]} Nxc3 {[%emt 0:01:38]} 20. Qxc3 {[%emt 0:00:03]} Nd5 {[%emt 0:00:03]} 21. Qd2 {[%emt 0:00:49]} c5 {[%emt 0:00:51]} 22. Bg3 {[%emt 0:00:15]} Qb6 {[%emt 0:00:19]} 23. dxc5 {[%emt 0:00:06]} Qxc5 {[%emt 0:00:03]} 24. Be5 {[%emt 0:00:02]} Rfd8 {[%emt 0:03:06]} 25. c3 {[%emt 0:00:39]} (25. Bxg7 {simplifies} Kxg7 26. Nd4 Qb6 27. a3) 25... Qb6 {[%emt 0:01:19]} 26. Bxg7 {[%emt 0:00:36]} Kxg7 {[%emt 0:00:03]} 27. Qg5 {[%emt 0:00:18]} Qc7 {[%emt 0:02:33]} 28. Rd4 {[%emt 0:00:44]} (28. Nd4 {with more complications.} h6 29. Qg4 Qc4 30. Qg3) 28... f6 {[%emt 0:00:26]} (28... h6 $5 {[%cal Rh6g5]} 29. Qc1 Rab8 $11) 29. Qd2 {[%emt 0:00:10]} Qf7 {[%emt 0:00:43]} (29... Rd6 $11 {remains equal.}) 30. Nh2 {[%emt 0:00:45] White is more active.} ({Don't play} 30. Rh4 e5 $15) ({White should try} 30. Rd3 $16) 30... e5 $11 {[%emt 0:00:17]} 31. Rd3 {[%emt 0:00:03] [#] Threatens to win with Rd1.} ({But not} 31. Rh4 Nf4 32. Qe3 h5 33. Rxf4 exf4 34. Qxf4 Re8 $17) 31... Rd7 {[%emt 0:00:27]} 32. Rd1 {[%emt 0:00:11][%cal Rd3d5]} Rad8 {[%emt 0:00:02]} 33. Ng4 {[%emt 0:00:02]} h5 {[%emt 0:02:27]} 34. Qh6+ {[%emt 0:01:19]} Kg8 {[%emt 0:00:01]} 35. Ne3 {[%emt 0:00:03] [#] And now Rxd5 would win. The position is equal.} Nb6 {[%emt 0:00:20][%csl LRa2,LRd3]} 36. Rxd7 {[%emt 0:00:21]} Rxd7 {[%emt 0:00:01]} 37. Rxd7 {[%emt 0:00:28]} Nxd7 {[%emt 0:00:02]} 38. b3 {[%emt 0:00:23]} Qg7 {[%emt 0:00:42]} 39. Qxg7+ {[%emt 0:00:12]} Kxg7 {[%emt 0:00:01]} 40. Kf1 {[%emt 0:00:29] Weighted Error Value: White=0.09 (flawless) /Black=0.07 (flawless)} 1/2-1/2

[Event "1st Kallai Gabor Memorial 2022"]
[Site "Budapest"]
[Date "2022.11.29"]
[Round "6.5"]
[White "Berkes, Ferenc"]
[Black "Borhy, Marcell"]
[Result "1/2-1/2"]
[ECO "D31"]
[WhiteElo "2643"]
[BlackElo "2407"]
[Annotator "TA"]
[PlyCount "91"]
[EventDate "2022.11.28"]
[EventType "tourn"]
[EventCountry "HUN"]
[SourceTitle "playchess.com"]
[Source "ChessBase"]
[SourceQuality "1"]
[TimeControl "1500+5"]

{[%evp 10,91,0,0,27,4,14,0,0,0,6,0,1,-23,-27,-13,-16,-27,0,-31,41,-7,-1,-12,-7,-7,-2,-49,-47,-42,20,-81,-13,-14,-5,-83,16,17,39,-46,-45,-52,-62,-202,-191,-450,-449,-415,-249,-491,0,0,127,0,0,0,0,0,0,0,0,0,0,0,0,0,0,0,0,0,0,0,0,0,0,0,0,0,0,0,0,0,0,0]} 1. d4 {[%emt 0:00:07]} d5 {[%emt 0:00:07]} 2. c4 {[%emt 0:00:01]} e6 {[%emt 0:00:02]} 3. Nc3 {[%emt 0:00:05]} Bb4 {[%emt 0:00:02]} 4. e3 {[%emt 0:01:12]} Nf6 {[%emt 0:00:03]} 5. a3 {[%emt 0:00:03]} Bxc3+ {[%emt 0:00:06]} 6. bxc3 {[%emt 0:00:01]} c6 {[%emt 0:00:02] E40: Nimzo-Indian: Rubinstein (4 e3): Unusual Black 4th moves.} 7. cxd5 {[%emt 0:01:34] 7.a4 is the modern continuation.} cxd5 {[%emt 0:00:03] [#]} 8. Bb5+ $146 {[%emt 0:00:01]} ({Predecessor:} 8. Nf3 b6 9. Bd3 O-O 10. Qe2 Nc6 11. O-O Ne4 12. Qc2 f5 13. a4 Bb7 14. Ba3 {1-0 (34) Esipenko,A (2682)-Gordievsky,D (2559) Chess.com INT 2020}) 8... Bd7 {[%emt 0:00:23]} 9. Bd3 {[%emt 0:00:01]} O-O {[%emt 0:00:31]} 10. Ne2 {[%emt 0:00:02][%cal Bg1e2,Be2g3,Bg3h1,Bh1f2][%mdl 32]} Nc6 {[%emt 0:00:17]} 11. O-O {[%emt 0:00:02]} e5 {[%emt 0:00:18]} 12. f3 {[%emt 0:00:49]} Re8 {[%emt 0:00:28]} 13. Ng3 {[%emt 0:00:14]} h5 14. Bb1 {[%emt 0:00:08]} g6 {[%emt 0:02:28]} ({Black should try} 14... Na5 $15) 15. Ra2 (15. e4 $14) 15... h4 $11 {[%emt 0:01:19]} 16. Nh1 {[%emt 0:01:24]} Na5 {[%emt 0:01:04]} 17. Nf2 (17. dxe5 {feels hotter.} Rxe5 18. Rb2 Nc4 19. Qd4) 17... e4 18. fxe4 {[%emt 0:04:52]} dxe4 {[%emt 0:01:46]} 19. Rb2 {[%emt 0:00:02]} Rc8 (19... b5 $15) 20. d5 {[%emt 0:03:54]} (20. Ba2 $1 $11) 20... Bf5 {[%emt 0:03:23]} (20... Rxc3 21. Rb4 h3 22. gxh3 Rxc1 23. Qxc1 $14) (20... Nc4 $17 21. Qd4 (21. Rxb7 Nd6 $15) 21... b5) 21. Ba2 $1 {Inhibits h3.} Nc4 $36 {[%emt 0:00:00][%mdl 2048] Black is more active.} (21... Rxc3 22. Qd4 Rxa3 23. Qb4 Rxa2 24. Rxa2 $16) 22. Rb4 {[%emt 0:02:57]} (22. Rxb7 $11 Qxd5 23. Rxa7) 22... Nb6 {[%emt 0:04:56]} (22... Ne5 $17 23. Rxb7 Qd6) 23. c4 {[%emt 0:00:07] Qd4 is the strong threat.} a5 {[%emt 0:00:04]} 24. Rb1 {[%emt 0:00:10]} (24. Rb5 $14 Nxc4 25. Qd4) 24... Nxc4 $15 {[%emt 0:00:04]} 25. Qd4 {[%emt 0:00:05]} Ne5 {[%emt 0:01:24][%cal Oh4h3] And now ...h3! would win.} 26. Rxb7 {[%emt 0:03:31]} (26. Bb2 $1 $15) 26... h3 $1 $19 {[%emt 0:00:35] aiming for ...hxg2.} 27. Bb2 $2 {[%emt 0:00:00]} (27. Qb6 {was the only defense.}) 27... hxg2 {[%emt 0:00:50]} 28. Kxg2 {[%emt 0:00:01][%cal Bg1g2,Bg2g3,Bg3f2,Bf2e2][%mdl 32]} Rc2 {[%emt 0:00:33]} 29. d6 $2 {[%emt 0:01:26]} (29. Bb3 Bh3+ 30. Kxh3 Qc8+ 31. Kg2 Rxb2 32. Qxb2 Qxb7 33. Qc3) 29... Nfg4 $2 {[%emt 0:01:04] Pair of Knights!} (29... Nfd7 $1 $19 {Strongly threatening ...Qh4.} 30. Bb3 Re2 31. Bxf7+ Kxf7) 30. Rxf7 $11 {[%emt 0:01:54] Hoping for Rd7+.} Be6 {[%emt 0:00:40] [#] Prevents Rd7.} (30... Rxb2 $11 {keeps the balance.} 31. Rd7+ Rxa2 32. Rxd8 Rxd8) 31. d7 {[%emt 0:01:49] Dancing on a razor blade.} (31. Bxe6 $6 Rxe6 32. Kh3 (32. Kh1 Nxh2 33. Re7 Rxe7 $15) 32... Rxd6 33. Nxg4 Rxd4 34. Nh6+ Kh8 35. Bxd4 Qg5 36. Bxe5+ Qxe5 $11) (31. Rf4 $1 $16 Bxa2 {[#]} 32. Rxg4 $1) 31... Bxf7 {[%emt 0:01:04] The position is equal.} (31... Nxf7 $2 32. Qg7#) (31... Kxf7 {keeps more tension.} 32. dxe8=Q+ Qxe8 33. Kg3 Nxh2 34. Rh1 Rxf2 35. Qxe5 Rf3+) 32. Bxf7+ {[%emt 0:00:02]} Kxf7 {[%emt 0:00:14]} 33. Kg3 Rxf2 {[%emt 0:01:39]} (33... Qxd7 34. Nxg4+ Ke7 35. Qxe5+ Kd8 36. Qb8+ Rc8 37. Bf6+ Re7 38. Qb3 $18) (33... Nxe3 $2 34. Qxe3 (34. dxe8=R $2 Qg5+ 35. Ng4+ Nxf1+ 36. Kh3 Qxg4#) 34... Rxb2 35. Nd1+ (35. dxe8=B+ Kxe8 36. Nxe4 Qd3 $11) (35. Nxe4+ Kg7 $11) 35... Kg7 36. dxe8=N+ (36. Nxb2 $2 Qxd7 37. Qxe4 Qd2 $19) 36... Qxe8 37. Nxb2 $18) 34. Rxf2+ {[%emt 0:00:31]} (34. dxe8=R $2 {perishes.} Qf6 35. Qd5+ (35. Rxe5 $2 {leads to mate.} Qf3+ 36. Kh4 Rxh2+ 37. Kg5 Rh5#) 35... Kxe8 $19) 34... Nxf2 {[%emt 0:00:02]} 35. dxe8=Q+ {[%emt 0:00:07]} (35. dxe8=R $2 {too greedy.} Qg5+ 36. Kxf2 Nd3+ 37. Kf1 Qf5+ 38. Ke2 Qh5+ 39. Kd2 Qxh2+ 40. Kd1 Nxb2+ 41. Kc1 Nd3+ 42. Kb1 Qh1+ 43. Ka2 Kxe8 $19) 35... Qxe8 {[%emt 0:00:05]} 36. Kxf2 {[%emt 0:00:39][%mdl 4096] Endgame KQB-KQN} Nd3+ {[%emt 0:00:04]} 37. Ke2 {[%emt 0:00:06] Threatening mate with Qf6+.} Nxb2 {[%emt 0:00:02]} 38. Qxb2 {[%emt 0:00:01] KQ-KQ} a4 {[%emt 0:00:09]} 39. Qb7+ {[%emt 0:00:14]} Kf6 {[%emt 0:00:14]} 40. Qd5 {[%emt 0:00:03]} Qb8 {[%emt 0:01:04]} 41. Qd4+ {[%emt 0:00:04]} Kf5 {[%emt 0:00:03]} 42. Qd7+ {[%emt 0:00:04]} Kf6 {[%emt 0:00:04]} 43. Qd4+ {[%emt 0:00:06]} Kf5 {[%emt 0:00:02]} 44. Qd5+ {[%emt 0:00:09]} Kf6 {[%emt 0:00:07]} 45. Qc6+ {[%emt 0:00:04]} Kf5 46. Qd7+ {[%emt 0:00:04] Weighted Error Value: White=0.39/Black=0.36} 1/2-1/2